[Event "Titled Tuesday Blitz June 20 Early 2023"]
[White "Rizzo, Tobias"]
[Black "Csonka, Balazs"]
[WhiteFideId "30942691"]
[BlackFideId "742910"]
[WhiteElo "2442"]
[BlackElo "2404"]
[Result "1/2-1/2"]
[Round "1"]
[TimeControl "180+2"]
[Date "2023.06.20"]
[WhiteClock "0:00:15"]
[BlackClock "0:00:07"]
[Board "90"]

1. d4 {[%clk 0:02:59]}  d5 {[%clk 0:02:59]} 2. Bf4 {[%clk 0:02:59]}  Nf6 {[%clk 0:02:55]} 3. e3 {[%clk 0:02:59]}  c5 {[%clk 0:02:54]} 4. c3 {[%clk 0:02:58]}  Nc6 {[%clk 0:02:55]} 5. Nf3 {[%clk 0:02:56]}  e6 {[%clk 0:02:51]} 6. Nbd2 {[%clk 0:02:54]}  cxd4 {[%clk 0:02:48]} 7. exd4 {[%clk 0:02:52]}  Nh5 {[%clk 0:02:48]} 8. Bg3 {[%clk 0:02:50]}  g6 {[%clk 0:02:44]} 9. Bd3 {[%clk 0:02:43]}  Bg7 {[%clk 0:02:43]} 10. O-O {[%clk 0:02:41]}  Nxg3 {[%clk 0:02:43]} 11. hxg3 {[%clk 0:02:42]}  O-O {[%clk 0:02:43]} 12. Re1 {[%clk 0:02:40]}  f6 {[%clk 0:02:21]} 13. c4 {[%clk 0:02:16]}  dxc4 {[%clk 0:02:22]} 14. Bxc4 {[%clk 0:02:13]}  Nxd4 {[%clk 0:02:21]} 15. Nxd4 {[%clk 0:02:12]}  Qxd4 {[%clk 0:02:22]} 16. Bxe6+ {[%clk 0:02:12]}  Bxe6 {[%clk 0:02:22]} 17. Rxe6 {[%clk 0:02:12]}  Rad8 {[%clk 0:01:28]} 18. Qb3 {[%clk 0:02:12]}  Qd5 {[%clk 0:01:28]} 19. Ne4 {[%clk 0:01:57]}  f5 {[%clk 0:01:12]} 20. Nc3 {[%clk 0:01:43]}  Qxb3 {[%clk 0:01:04]} 21. axb3 {[%clk 0:01:43]}  a6 {[%clk 0:01:03]} 22. Re7 {[%clk 0:01:42]}  Rf7 {[%clk 0:01:03]} 23. Rae1 {[%clk 0:01:40]}  Rd2 {[%clk 0:00:55]} 24. Na4 {[%clk 0:01:26]}  Bxb2 {[%clk 0:00:44]} 25. Re8+ {[%clk 0:00:58]}  Kg7 {[%clk 0:00:42]} 26. Nc5 {[%clk 0:00:49]}  Kh6 {[%clk 0:00:30]} 27. Ne6 {[%clk 0:00:40]}  Bd4 {[%clk 0:00:23]} 28. Nxd4 {[%clk 0:00:37]}  Rxd4 {[%clk 0:00:24]} 29. R1e3 {[%clk 0:00:29]}  Rb4 {[%clk 0:00:21]} 30. R8e5 {[%clk 0:00:28]}  Kg7 {[%clk 0:00:20]} 31. Rc3 {[%clk 0:00:23]}  Rd7 {[%clk 0:00:15]} 32. f4 {[%clk 0:00:18]}  h5 {[%clk 0:00:13]} 33. Kf2 {[%clk 0:00:18]}  h4 {[%clk 0:00:12]} 34. Kf3 {[%clk 0:00:11]}  hxg3 {[%clk 0:00:06]} 35. Kxg3 {[%clk 0:00:12]}  Rdd4 {[%clk 0:00:06]} 36. Rf3 {[%clk 0:00:11]}  Kf6 {[%clk 0:00:05]} 37. Rc5 {[%clk 0:00:10]}  Rd7 {[%clk 0:00:04]} 38. Re3 {[%clk 0:00:09]}  Rdd4 {[%clk 0:00:04]} 39. Rf3 {[%clk 0:00:10]}  Kg7 {[%clk 0:00:02]} 40. Rc7+ {[%clk 0:00:09]}  Kh6 {[%clk 0:00:02]} 41. Re7 {[%clk 0:00:05]}  a5 {[%clk 0:00:02]} 42. Rc7 {[%clk 0:00:04]}  b5 {[%clk 0:00:02]} 43. Ra7 {[%clk 0:00:04]}  a4 {[%clk 0:00:03]} 44. bxa4 {[%clk 0:00:05]}  bxa4 {[%clk 0:00:04]} 45. Ra3 {[%clk 0:00:05]}  Rb3+ {[%clk 0:00:03]} 46. Rxb3 {[%clk 0:00:05]}  axb3 {[%clk 0:00:04]} 47. Rb7 {[%clk 0:00:06]}  Rd3+ {[%clk 0:00:04]} 48. Kh4 {[%clk 0:00:06]}  Rc3 {[%clk 0:00:02]} 49. Rb6 {[%clk 0:00:05]}  Rd3 {[%clk 0:00:02]} 50. Rb7 {[%clk 0:00:06]}  Rd4 {[%clk 0:00:02]} 51. Rxb3 {[%clk 0:00:04]}  Rxf4+ {[%clk 0:00:02]} 52. Kh3 {[%clk 0:00:05]}  Ra4 {[%clk 0:00:03]} 53. Rd3 {[%clk 0:00:05]}  Kg5 {[%clk 0:00:03]} 54. Rf3 {[%clk 0:00:06]}  Rf4 {[%clk 0:00:03]} 55. Rd3 {[%clk 0:00:05]}  Rh4+ {[%clk 0:00:03]} 56. Kg3 {[%clk 0:00:05]}  Rg4+ {[%clk 0:00:04]} 57. Kh3 {[%clk 0:00:06]}  Ra4 {[%clk 0:00:04]} 58. Re3 {[%clk 0:00:06]}  Kf4 {[%clk 0:00:04]} 59. Rf3+ {[%clk 0:00:06]}  Ke5 {[%clk 0:00:04]} 60. Re3+ {[%clk 0:00:07]}  Re4 {[%clk 0:00:04]} 61. Rb3 {[%clk 0:00:07]}  g5 {[%clk 0:00:04]} 62. Rb5+ {[%clk 0:00:07]}  Kf4 {[%clk 0:00:04]} 63. g3+ {[%clk 0:00:07]}  Ke3 {[%clk 0:00:03]} 64. Rxf5 {[%clk 0:00:07]}  Re8 {[%clk 0:00:02]} 65. Rxg5 {[%clk 0:00:06]}  Ke4 {[%clk 0:00:02]} 66. Rg7 {[%clk 0:00:04]}  Kf5 {[%clk 0:00:02]} 67. Rf7+ {[%clk 0:00:05]}  Kg6 {[%clk 0:00:02]} 68. Rf4 {[%clk 0:00:05]}  Re5 {[%clk 0:00:02]} 69. Kh4 {[%clk 0:00:05]}  Rh5+ {[%clk 0:00:02]} 70. Kg4 {[%clk 0:00:05]}  Rg5+ {[%clk 0:00:03]} 71. Kh3 {[%clk 0:00:06]}  Rh5+ {[%clk 0:00:03]} 72. Rh4 {[%clk 0:00:06]}  Rf5 {[%clk 0:00:02]} 73. Ra4 {[%clk 0:00:06]}  Re5 {[%clk 0:00:02]} 74. Ra6+ {[%clk 0:00:04]}  Kg5 {[%clk 0:00:03]} 75. Ra8 {[%clk 0:00:05]}  Kg6 {[%clk 0:00:03]} 76. Rg8+ {[%clk 0:00:05]}  Kf7 {[%clk 0:00:03]} 77. Rg4 {[%clk 0:00:06]}  Kf6 {[%clk 0:00:03]} 78. Rf4+ {[%clk 0:00:06]}  Kg5 {[%clk 0:00:03]} 79. Rb4 {[%clk 0:00:05]}  Rd5 {[%clk 0:00:03]} 80. Re4 {[%clk 0:00:05]}  Ra5 {[%clk 0:00:03]} 81. Re8 {[%clk 0:00:05]}  Rb5 {[%clk 0:00:03]} 82. Rg8+ {[%clk 0:00:06]}  Kh5 {[%clk 0:00:04]} 83. g4+ {[%clk 0:00:05]}  Kh6 {[%clk 0:00:04]} 84. Kh4 {[%clk 0:00:05]}  Ra5 {[%clk 0:00:04]} 85. Rc8 {[%clk 0:00:05]}  Kg6 {[%clk 0:00:04]} 86. Rc6+ {[%clk 0:00:06]}  Kg7 {[%clk 0:00:05]} 87. g5 {[%clk 0:00:07]}  Ra1 {[%clk 0:00:05]} 88. Rc3 {[%clk 0:00:05]}  Rh1+ {[%clk 0:00:05]} 89. Kg4 {[%clk 0:00:05]}  Rg1+ {[%clk 0:00:05]} 90. Kf5 {[%clk 0:00:05]}  Rf1+ {[%clk 0:00:05]} 91. Kg4 {[%clk 0:00:06]}  Rg1+ {[%clk 0:00:05]} 92. Rg3 {[%clk 0:00:06]}  Rxg3+ {[%clk 0:00:06]} 93. Kxg3 {[%clk 0:00:07]}  Kg6 {[%clk 0:00:06]} 94. Kg4 {[%clk 0:00:08]}  Kg7 {[%clk 0:00:07]} 95. Kf5 {[%clk 0:00:09]}  Kf7 {[%clk 0:00:07]} 96. Kf4 {[%clk 0:00:09]}  Kg6 {[%clk 0:00:07]} 97. Kg4 {[%clk 0:00:10]}  Kg7 {[%clk 0:00:08]} 98. Kf5 {[%clk 0:00:10]}  Kf7 {[%clk 0:00:08]} 99. g6+ {[%clk 0:00:11]}  Kg7 {[%clk 0:00:08]} 100. Kg5 {[%clk 0:00:12]}  Kg8 {[%clk 0:00:09]} 101. Kg4 {[%clk 0:00:13]}  Kg7 {[%clk 0:00:09]} 102. Kh5 {[%clk 0:00:13]}  Kg8 {[%clk 0:00:07]} 103. Kh6 {[%clk 0:00:14]}  Kh8 {[%clk 0:00:07]} 104. Kh5 {[%clk 0:00:13]}  Kg7 {[%clk 0:00:06]} 105. Kg5 {[%clk 0:00:14]}  Kg8 {[%clk 0:00:07]} 106. Kf6 {[%clk 0:00:14]}  Kf8 {[%clk 0:00:07]} 107. g7+ {[%clk 0:00:14]}  Kg8 {[%clk 0:00:07]} 108. Kg6 {[%clk 0:00:15]} 1/2-1/2


[Site "https://www.chess.com"]

[Event "Titled Tuesday Blitz June 20 Early 2023"]
[White "Kim, Yoon-Young"]
[Black "Principe, Alexander"]
[WhiteFideId "30908779"]
[BlackFideId "3804542"]
[WhiteElo "2217"]
[BlackElo "2203"]
[Result "0-1"]
[Round "1"]
[TimeControl "180+2"]
[Date "2023.06.20"]
[WhiteClock "0:00:00"]
[BlackClock "0:01:16"]
[Board "91"]

1. d4 {[%clk 0:02:57]}  Nf6 {[%clk 0:02:59]} 2. c4 {[%clk 0:02:55]}  g6 {[%clk 0:03:00]} 3. Nc3 {[%clk 0:02:53]}  Bg7 {[%clk 0:03:00]} 4. Nf3 {[%clk 0:02:40]}  O-O {[%clk 0:03:01]} 5. Bg5 {[%clk 0:01:48]}  d6 {[%clk 0:03:02]} 6. e3 {[%clk 0:00:43]}  b6 {[%clk 0:03:01]} 7. Be2 {[%clk 0:00:39]}  Bb7 {[%clk 0:03:01]} 8. O-O {[%clk 0:00:39]}  Nbd7 {[%clk 0:03:01]} 9. Qc2 {[%clk 0:00:29]}  Re8 {[%clk 0:02:53]} 10. Rfd1 {[%clk 0:00:27]}  Qc8 {[%clk 0:02:50]} 11. Rac1 {[%clk 0:00:23]}  e5 {[%clk 0:02:47]} 12. d5 {[%clk 0:00:21]}  Kh8 {[%clk 0:02:31]} 13. Nd2 {[%clk 0:00:21]}  Ng8 {[%clk 0:02:31]} 14. Bh4 {[%clk 0:00:21]}  f5 {[%clk 0:02:30]} 15. h3 {[%clk 0:00:21]}  Ngf6 {[%clk 0:02:27]} 16. b4 {[%clk 0:00:19]}  a5 {[%clk 0:02:23]} 17. a3 {[%clk 0:00:16]}  h6 {[%clk 0:02:19]} 18. Bg3 {[%clk 0:00:16]}  Qd8 {[%clk 0:02:08]} 19. f3 {[%clk 0:00:06]}  Qe7 {[%clk 0:02:07]} 20. Bf2 {[%clk 0:00:07]}  e4 {[%clk 0:02:04]} 21. f4 {[%clk 0:00:08]}  g5 {[%clk 0:02:04]} 22. Bg3 {[%clk 0:00:07]}  Rg8 {[%clk 0:01:52]} 23. Rf1 {[%clk 0:00:07]}  gxf4 {[%clk 0:01:26]} 24. Bxf4 {[%clk 0:00:00]}  Nh7 {[%clk 0:01:16]} 0-1


[Site "https://www.chess.com"]

[Event "Titled Tuesday Blitz June 20 Early 2023"]
[White "Hayrapetyan, Hovik"]
[Black "Ansh M Shah"]
[WhiteFideId "13302639"]
[BlackFideId "25033379"]
[WhiteElo "2348"]
[BlackElo "2084"]
[Result "1-0"]
[Round "1"]
[TimeControl "180+2"]
[Date "2023.06.20"]
[WhiteClock "0:00:12"]
[BlackClock "0:00:00"]
[Board "93"]

1. d4 {[%clk 0:03:00]}  c6 {[%clk 0:02:59]} 2. c4 {[%clk 0:03:00]}  d5 {[%clk 0:03:00]} 3. Nf3 {[%clk 0:03:00]}  Nf6 {[%clk 0:02:59]} 4. Nc3 {[%clk 0:03:00]}  e6 {[%clk 0:02:59]} 5. e3 {[%clk 0:03:00]}  Nbd7 {[%clk 0:02:57]} 6. Bd3 {[%clk 0:03:01]}  dxc4 {[%clk 0:02:57]} 7. Bxc4 {[%clk 0:03:01]}  b5 {[%clk 0:02:57]} 8. Bd3 {[%clk 0:03:02]}  Bd6 {[%clk 0:02:58]} 9. O-O {[%clk 0:02:58]}  O-O {[%clk 0:02:57]} 10. Qc2 {[%clk 0:02:59]}  Bb7 {[%clk 0:02:56]} 11. e4 {[%clk 0:02:58]}  e5 {[%clk 0:02:56]} 12. dxe5 {[%clk 0:02:59]}  Nxe5 {[%clk 0:02:56]} 13. Nxe5 {[%clk 0:03:00]}  Bxe5 {[%clk 0:02:56]} 14. h3 {[%clk 0:03:01]}  Re8 {[%clk 0:02:50]} 15. Be3 {[%clk 0:02:55]}  Qd6 {[%clk 0:02:47]} 16. Rad1 {[%clk 0:02:49]}  Qe7 {[%clk 0:02:20]} 17. Ne2 {[%clk 0:02:13]}  Bc7 {[%clk 0:01:57]} 18. Bc5 {[%clk 0:02:13]}  Qe6 {[%clk 0:01:45]} 19. Nd4 {[%clk 0:02:10]}  Qe5 {[%clk 0:01:14]} 20. f4 {[%clk 0:02:03]}  Qh5 {[%clk 0:01:14]} 21. e5 {[%clk 0:01:47]}  Nd5 {[%clk 0:01:11]} 22. Nf5 {[%clk 0:01:31]}  Bb6 {[%clk 0:00:44]} 23. Bxb6 {[%clk 0:01:07]}  axb6 {[%clk 0:00:45]} 24. Qf2 {[%clk 0:00:47]}  Ba6 {[%clk 0:00:32]} 25. Kh2 {[%clk 0:00:43]}  b4 {[%clk 0:00:32]} 26. g4 {[%clk 0:00:43]}  Qg6 {[%clk 0:00:26]} 27. Ne7+ {[%clk 0:00:41]}  Rxe7 {[%clk 0:00:24]} 28. Bxg6 {[%clk 0:00:42]}  Bxf1 {[%clk 0:00:23]} 29. Bxh7+ {[%clk 0:00:34]}  Kxh7 {[%clk 0:00:23]} 30. Rxd5 {[%clk 0:00:35]}  cxd5 {[%clk 0:00:22]} 31. Qh4+ {[%clk 0:00:35]}  Kg8 {[%clk 0:00:22]} 32. Qxe7 {[%clk 0:00:36]}  Rxa2 {[%clk 0:00:21]} 33. Qxb4 {[%clk 0:00:36]}  b5 {[%clk 0:00:20]} 34. f5 {[%clk 0:00:35]}  Bc4 {[%clk 0:00:19]} 35. Kg3 {[%clk 0:00:35]}  d4 {[%clk 0:00:19]} 36. g5 {[%clk 0:00:32]}  d3 {[%clk 0:00:19]} 37. Qd6 {[%clk 0:00:23]}  Kh7 {[%clk 0:00:08]} 38. g6+ {[%clk 0:00:21]}  fxg6 {[%clk 0:00:08]} 39. Qxg6+ {[%clk 0:00:20]}  Kh8 {[%clk 0:00:08]} 40. Qh5+ {[%clk 0:00:13]}  Kg8 {[%clk 0:00:08]} 41. Qe8+ {[%clk 0:00:14]}  Kh7 {[%clk 0:00:08]} 42. Qd7 {[%clk 0:00:12]}  Kh8 {[%clk 0:00:08]} 43. f6 {[%clk 0:00:11]}  gxf6 {[%clk 0:00:00]} 44. exf6 {[%clk 0:00:12]} 1-0


[Site "https://www.chess.com"]

[Event "Titled Tuesday Blitz June 20 Early 2023"]
[White "Grossboss19"]
[Black "Nazari, Arad"]
[BlackFideId "12577324"]
[WhiteElo "2433"]
[BlackElo "2175"]
[Result "1-0"]
[Round "1"]
[TimeControl "180+2"]
[Date "2023.06.20"]
[WhiteClock "0:00:09"]
[BlackClock "0:00:05"]
[Board "96"]

1. e4 {[%clk 0:02:58]}  c5 {[%clk 0:03:00]} 2. Nc3 {[%clk 0:02:57]}  d6 {[%clk 0:02:59]} 3. g3 {[%clk 0:02:55]}  g6 {[%clk 0:02:58]} 4. Bg2 {[%clk 0:02:54]}  Bg7 {[%clk 0:02:58]} 5. Nge2 {[%clk 0:02:54]}  Nc6 {[%clk 0:02:59]} 6. O-O {[%clk 0:02:54]}  e6 {[%clk 0:03:00]} 7. d3 {[%clk 0:02:54]}  Nge7 {[%clk 0:03:00]} 8. Be3 {[%clk 0:02:54]}  O-O {[%clk 0:03:01]} 9. Qd2 {[%clk 0:02:55]}  Rb8 {[%clk 0:03:01]} 10. a4 {[%clk 0:02:54]}  a6 {[%clk 0:03:01]} 11. Bh6 {[%clk 0:02:53]}  b5 {[%clk 0:03:01]} 12. axb5 {[%clk 0:02:52]}  axb5 {[%clk 0:03:02]} 13. Bxg7 {[%clk 0:02:53]}  Kxg7 {[%clk 0:03:03]} 14. d4 {[%clk 0:02:52]}  e5 {[%clk 0:02:46]} 15. dxc5 {[%clk 0:02:46]}  dxc5 {[%clk 0:02:47]} 16. Rfd1 {[%clk 0:02:41]}  Nd4 {[%clk 0:02:36]} 17. Nxd4 {[%clk 0:02:39]}  cxd4 {[%clk 0:02:30]} 18. Ne2 {[%clk 0:02:39]}  Bg4 {[%clk 0:02:23]} 19. h3 {[%clk 0:02:33]}  Bxe2 {[%clk 0:02:22]} 20. Qxe2 {[%clk 0:02:34]}  Qc7 {[%clk 0:02:19]} 21. Rdc1 {[%clk 0:02:27]}  Rfd8 {[%clk 0:02:05]} 22. c3 {[%clk 0:02:25]}  Qb6 {[%clk 0:01:40]} 23. cxd4 {[%clk 0:02:20]}  Rxd4 {[%clk 0:01:41]} 24. Ra3 {[%clk 0:02:14]}  Rbd8 {[%clk 0:01:37]} 25. Rc2 {[%clk 0:02:08]}  Nc6 {[%clk 0:01:15]} 26. Bf1 {[%clk 0:01:47]}  Nb4 {[%clk 0:01:02]} 27. Rc1 {[%clk 0:01:42]}  Rd2 {[%clk 0:01:00]} 28. Qe3 {[%clk 0:01:42]}  Qxe3 {[%clk 0:00:54]} 29. Rxe3 {[%clk 0:01:43]}  Rxb2 {[%clk 0:00:46]} 30. Bxb5 {[%clk 0:01:42]}  Rdd2 {[%clk 0:00:43]} 31. Rf3 {[%clk 0:01:32]}  Nc2 {[%clk 0:00:28]} 32. Rd3 {[%clk 0:01:14]}  Nd4 {[%clk 0:00:16]} 33. Rxd2 {[%clk 0:01:13]}  Rxd2 {[%clk 0:00:17]} 34. Bf1 {[%clk 0:01:13]}  h5 {[%clk 0:00:10]} 35. h4 {[%clk 0:01:08]}  Kf6 {[%clk 0:00:09]} 36. Kg2 {[%clk 0:01:07]}  g5 {[%clk 0:00:08]} 37. hxg5+ {[%clk 0:01:05]}  Kxg5 {[%clk 0:00:09]} 38. Rc7 {[%clk 0:01:05]}  f6 {[%clk 0:00:10]} 39. Rg7+ {[%clk 0:01:05]}  Kh6 {[%clk 0:00:10]} 40. Ra7 {[%clk 0:01:02]}  Nc2 {[%clk 0:00:10]} 41. Kg1 {[%clk 0:00:59]}  Ne1 {[%clk 0:00:11]} 42. Ra3 {[%clk 0:00:57]}  Nc2 {[%clk 0:00:11]} 43. Ra2 {[%clk 0:00:54]}  Kg5 {[%clk 0:00:11]} 44. Ra6 {[%clk 0:00:41]}  Rd1 {[%clk 0:00:08]} 45. Ra8 {[%clk 0:00:28]}  Ne1 {[%clk 0:00:07]} 46. Rg8+ {[%clk 0:00:27]}  Kh6 {[%clk 0:00:08]} 47. Kh2 {[%clk 0:00:24]}  Rd2 {[%clk 0:00:07]} 48. Kg1 {[%clk 0:00:22]}  Nf3+ {[%clk 0:00:06]} 49. Kg2 {[%clk 0:00:22]}  Ng5 {[%clk 0:00:06]} 50. Rf8 {[%clk 0:00:19]}  Nxe4 {[%clk 0:00:04]} 51. Kg1 {[%clk 0:00:17]}  Kg7 {[%clk 0:00:04]} 52. Ra8 {[%clk 0:00:16]}  Nxf2 {[%clk 0:00:04]} 53. Bg2 {[%clk 0:00:16]}  Ng4 {[%clk 0:00:04]} 54. Bf3 {[%clk 0:00:16]}  Kg6 {[%clk 0:00:03]} 55. Rg8+ {[%clk 0:00:15]}  Kf5 {[%clk 0:00:03]} 56. Rh8 {[%clk 0:00:16]}  Kg5 {[%clk 0:00:03]} 57. Rg8+ {[%clk 0:00:16]}  Kf5 {[%clk 0:00:04]} 58. Rh8 {[%clk 0:00:17]}  Kg6 {[%clk 0:00:05]} 59. Rg8+ {[%clk 0:00:17]}  Kh7 {[%clk 0:00:05]} 60. Rf8 {[%clk 0:00:17]}  Kg7 {[%clk 0:00:06]} 61. Ra8 {[%clk 0:00:17]}  Rd3 {[%clk 0:00:06]} 62. Kg2 {[%clk 0:00:16]}  Rc3 {[%clk 0:00:06]} 63. Ra7+ {[%clk 0:00:15]}  Kg6 {[%clk 0:00:07]} 64. Ra8 {[%clk 0:00:15]}  Ne3+ {[%clk 0:00:07]} 65. Kf2 {[%clk 0:00:15]}  Nf5 {[%clk 0:00:08]} 66. Be4 {[%clk 0:00:13]}  Rc4 {[%clk 0:00:05]} 67. Kf3 {[%clk 0:00:13]}  Rc3+ {[%clk 0:00:05]} 68. Kf2 {[%clk 0:00:13]}  Rc4 {[%clk 0:00:03]} 69. Kf3 {[%clk 0:00:13]}  Rc7 {[%clk 0:00:04]} 70. Rg8+ {[%clk 0:00:11]}  Kf7 {[%clk 0:00:04]} 71. Rh8 {[%clk 0:00:10]}  Ng7 {[%clk 0:00:04]} 72. Ra8 {[%clk 0:00:09]}  Rc3+ {[%clk 0:00:05]} 73. Kf2 {[%clk 0:00:09]}  Rc7 {[%clk 0:00:04]} 74. Kf3 {[%clk 0:00:09]}  Ne6 {[%clk 0:00:05]} 75. Bd5 {[%clk 0:00:08]}  Rd7 {[%clk 0:00:05]} 76. Ke4 {[%clk 0:00:08]}  Ke7 {[%clk 0:00:06]} 77. Ra5 {[%clk 0:00:05]}  Ng5+ {[%clk 0:00:05]} 78. Kf5 {[%clk 0:00:06]}  Nf7 {[%clk 0:00:01]} 79. Kg6 {[%clk 0:00:05]}  Nd6 {[%clk 0:00:02]} 80. Kxh5 {[%clk 0:00:05]}  e4 {[%clk 0:00:02]} 81. Kg4 {[%clk 0:00:05]}  e3 {[%clk 0:00:02]} 82. Kf3 {[%clk 0:00:05]}  Nf5 {[%clk 0:00:02]} 83. Be4 {[%clk 0:00:04]}  Nd4+ {[%clk 0:00:03]} 84. Kxe3 {[%clk 0:00:04]}  Nb3 {[%clk 0:00:03]} 85. Rb5 {[%clk 0:00:04]}  Nd2 {[%clk 0:00:02]} 86. Bd5 {[%clk 0:00:02]}  Nf1+ {[%clk 0:00:02]} 87. Kf2 {[%clk 0:00:03]}  Nd2 {[%clk 0:00:02]} 88. Ke3 {[%clk 0:00:03]}  Nf1+ {[%clk 0:00:03]} 89. Kf2 {[%clk 0:00:03]}  Nd2 {[%clk 0:00:03]} 90. g4 {[%clk 0:00:04]}  Kd6 {[%clk 0:00:03]} 91. Bg2 {[%clk 0:00:03]}  Ke7 {[%clk 0:00:03]} 92. Ke3 {[%clk 0:00:03]}  Nc4+ {[%clk 0:00:03]} 93. Kf4 {[%clk 0:00:03]}  Ne5 {[%clk 0:00:04]} 94. Be4 {[%clk 0:00:03]}  Rd4 {[%clk 0:00:04]} 95. Rb7+ {[%clk 0:00:03]}  Nd7 {[%clk 0:00:04]} 96. Ke3 {[%clk 0:00:03]}  Rc4 {[%clk 0:00:04]} 97. Bf5 {[%clk 0:00:03]}  Rc3+ {[%clk 0:00:03]} 98. Kd4 {[%clk 0:00:03]}  Rg3 {[%clk 0:00:03]} 99. Rxd7+ {[%clk 0:00:03]}  Ke8 {[%clk 0:00:04]} 100. Ke4 {[%clk 0:00:04]}  Rg1 {[%clk 0:00:03]} 101. Rg7 {[%clk 0:00:04]}  Re1+ {[%clk 0:00:04]} 102. Kf4 {[%clk 0:00:04]}  Kf8 {[%clk 0:00:05]} 103. Rb7 {[%clk 0:00:03]}  Rf1+ {[%clk 0:00:04]} 104. Kg3 {[%clk 0:00:04]}  Rg1+ {[%clk 0:00:04]} 105. Kf2 {[%clk 0:00:04]}  Rc1 {[%clk 0:00:04]} 106. Ke3 {[%clk 0:00:03]}  Re1+ {[%clk 0:00:04]} 107. Kd4 {[%clk 0:00:04]}  Ke8 {[%clk 0:00:04]} 108. Kd5 {[%clk 0:00:04]}  Kf8 {[%clk 0:00:04]} 109. Kd6 {[%clk 0:00:04]}  Re2 {[%clk 0:00:04]} 110. Rb8+ {[%clk 0:00:04]}  Kf7 {[%clk 0:00:04]} 111. Rb7+ {[%clk 0:00:04]}  Kf8 {[%clk 0:00:05]} 112. Be6 {[%clk 0:00:04]}  Re4 {[%clk 0:00:03]} 113. Rf7+ {[%clk 0:00:04]}  Kg8 {[%clk 0:00:03]} 114. Rxf6+ {[%clk 0:00:04]}  Kg7 {[%clk 0:00:04]} 115. Rf7+ {[%clk 0:00:03]}  Kh6 {[%clk 0:00:04]} 116. Rf1 {[%clk 0:00:03]}  Kg5 {[%clk 0:00:04]} 117. Bf5 {[%clk 0:00:03]}  Re3 {[%clk 0:00:04]} 118. Kd5 {[%clk 0:00:03]}  Re7 {[%clk 0:00:04]} 119. Ra1 {[%clk 0:00:04]}  Rb7 {[%clk 0:00:04]} 120. Kd6 {[%clk 0:00:04]}  Rb6+ {[%clk 0:00:04]} 121. Kc5 {[%clk 0:00:04]}  Rb8 {[%clk 0:00:04]} 122. Ra5 {[%clk 0:00:04]}  Rd8 {[%clk 0:00:05]} 123. Rb5 {[%clk 0:00:05]}  Kh4 {[%clk 0:00:05]} 124. Kc6 {[%clk 0:00:06]}  Kg5 {[%clk 0:00:05]} 125. Rd5 {[%clk 0:00:06]}  Rb8 {[%clk 0:00:06]} 126. Kd6 {[%clk 0:00:07]}  Rb2 {[%clk 0:00:06]} 127. Ke6 {[%clk 0:00:07]}  Re2+ {[%clk 0:00:06]} 128. Re5 {[%clk 0:00:07]}  Rb2 {[%clk 0:00:06]} 129. Kd5 {[%clk 0:00:08]}  Rb5+ {[%clk 0:00:06]} 130. Ke4 {[%clk 0:00:08]}  Rb4+ {[%clk 0:00:07]} 131. Kf3 {[%clk 0:00:08]}  Kh4 {[%clk 0:00:06]} 132. Re3 {[%clk 0:00:08]}  Rb2 {[%clk 0:00:05]} 133. Rd3 {[%clk 0:00:08]}  Rb4 {[%clk 0:00:06]} 134. Rd8 {[%clk 0:00:08]}  Rb2 {[%clk 0:00:06]} 135. Kf4 {[%clk 0:00:09]}  Rf2+ {[%clk 0:00:06]} 136. Ke3 {[%clk 0:00:09]}  Rb2 {[%clk 0:00:06]} 137. Rh8+ {[%clk 0:00:08]}  Kg5 {[%clk 0:00:06]} 138. Rh5+ {[%clk 0:00:09]}  Kf6 {[%clk 0:00:07]} 139. Kf4 {[%clk 0:00:09]}  Rf2+ {[%clk 0:00:07]} 140. Kg3 {[%clk 0:00:09]}  Rf1 {[%clk 0:00:08]} 141. Rh6+ {[%clk 0:00:10]}  Kf7 {[%clk 0:00:06]} 142. Kh4 {[%clk 0:00:10]}  Rc1 {[%clk 0:00:04]} 143. Kg5 {[%clk 0:00:10]}  Kg7 {[%clk 0:00:05]} 144. Rh7+ {[%clk 0:00:10]}  Kg8 {[%clk 0:00:05]} 145. Rb7 {[%clk 0:00:11]}  Rc6 {[%clk 0:00:06]} 146. Bg6 {[%clk 0:00:11]}  Rc5+ {[%clk 0:00:06]} 147. Kh6 {[%clk 0:00:10]}  Rc8 {[%clk 0:00:07]} 148. g5 {[%clk 0:00:10]}  Kh8 {[%clk 0:00:07]} 149. Rh7+ {[%clk 0:00:10]}  Kg8 {[%clk 0:00:07]} 150. Rg7+ {[%clk 0:00:10]}  Kh8 {[%clk 0:00:07]} 151. Ra7 {[%clk 0:00:11]}  Rd8 {[%clk 0:00:06]} 152. Bf5 {[%clk 0:00:10]}  Rf8 {[%clk 0:00:05]} 153. g6 {[%clk 0:00:09]}  Re8 {[%clk 0:00:04]} 154. g7+ {[%clk 0:00:08]}  Kg8 {[%clk 0:00:05]} 155. Bh7# {[%clk 0:00:09]} 1-0


[Site "https://www.chess.com"]

[Event "Titled Tuesday Blitz June 20 Early 2023"]
[White "Mrudul Dehankar"]
[Black "Seo, Jung Min"]
[WhiteFideId "25096990"]
[BlackFideId "1734687"]
[WhiteElo "2139"]
[BlackElo "2468"]
[Result "0-1"]
[Round "1"]
[TimeControl "180+2"]
[Date "2023.06.20"]
[WhiteClock "0:00:00"]
[BlackClock "0:00:30"]
[Board "98"]

1. e4 {[%clk 0:02:54]}  c5 {[%clk 0:02:55]} 2. Nf3 {[%clk 0:02:54]}  d6 {[%clk 0:02:55]} 3. d4 {[%clk 0:02:54]}  cxd4 {[%clk 0:02:54]} 4. Nxd4 {[%clk 0:02:54]}  Nf6 {[%clk 0:02:55]} 5. Nc3 {[%clk 0:02:54]}  a6 {[%clk 0:02:55]} 6. Bg5 {[%clk 0:02:54]}  Nbd7 {[%clk 0:02:55]} 7. Bc4 {[%clk 0:02:46]}  Qb6 {[%clk 0:02:49]} 8. Bb3 {[%clk 0:02:40]}  e6 {[%clk 0:02:48]} 9. Qd2 {[%clk 0:02:39]}  Be7 {[%clk 0:02:47]} 10. O-O-O {[%clk 0:02:38]}  Nc5 {[%clk 0:02:48]} 11. f3 {[%clk 0:02:33]}  Qc7 {[%clk 0:02:46]} 12. Kb1 {[%clk 0:02:24]}  Bd7 {[%clk 0:02:41]} 13. h4 {[%clk 0:02:14]}  b5 {[%clk 0:02:40]} 14. h5 {[%clk 0:02:01]}  h6 {[%clk 0:02:26]} 15. Be3 {[%clk 0:01:57]}  b4 {[%clk 0:02:25]} 16. Nce2 {[%clk 0:01:48]}  a5 {[%clk 0:02:25]} 17. c3 {[%clk 0:00:57]}  Nxb3 {[%clk 0:02:14]} 18. Nxb3 {[%clk 0:00:54]}  a4 {[%clk 0:02:08]} 19. Nbd4 {[%clk 0:00:48]}  bxc3 {[%clk 0:02:01]} 20. Nxc3 {[%clk 0:00:45]}  O-O {[%clk 0:01:55]} 21. Ndb5 {[%clk 0:00:39]}  Bxb5 {[%clk 0:01:51]} 22. Nxb5 {[%clk 0:00:38]}  Qc6 {[%clk 0:01:35]} 23. Nxd6 {[%clk 0:00:30]}  Rfd8 {[%clk 0:01:33]} 24. Bf4 {[%clk 0:00:27]}  Ra6 {[%clk 0:01:22]} 25. e5 {[%clk 0:00:15]}  Nd5 {[%clk 0:01:21]} 26. Rc1 {[%clk 0:00:14]}  Qd7 {[%clk 0:01:15]} 27. Rhd1 {[%clk 0:00:12]}  a3 {[%clk 0:01:11]} 28. b3 {[%clk 0:00:12]}  f6 {[%clk 0:01:03]} 29. Bh2 {[%clk 0:00:09]}  fxe5 {[%clk 0:00:58]} 30. Ne4 {[%clk 0:00:09]}  Qe8 {[%clk 0:00:45]} 31. Bxe5 {[%clk 0:00:09]}  Qxh5 {[%clk 0:00:42]} 32. Bd4 {[%clk 0:00:06]}  Qf5 {[%clk 0:00:41]} 33. Qe2 {[%clk 0:00:05]}  Raa8 {[%clk 0:00:40]} 34. g4 {[%clk 0:00:05]}  Qg6 {[%clk 0:00:39]} 35. Ka1 {[%clk 0:00:06]}  Kh7 {[%clk 0:00:37]} 36. Nc3 {[%clk 0:00:04]}  Nb4 {[%clk 0:00:30]} 37. Qe4 {[%clk 0:00:03]}  Bg5 {[%clk 0:00:30]} 38. Qxg6+ {[%clk 0:00:00]}  Kxg6 {[%clk 0:00:30]} 0-1


[Site "https://www.chess.com"]